bitfinex/quotes_ETHUSD_20240731
["timestamp","ask_amount","ask_price","bid_price","bid_amount"]
[1722408377217,4.89450979,3325.7,3325.1,35.0]
[1722408377532,3.00704,3325.6,3325.1,35.0]
[1722408378087,3.00713,3325.5,3325.1,35.0]
[1722408378395,3.00712,3325.5,3325.1,35.0]
[1722408379344,3.00697,3325.6,3325.1,35.0]
[1722408379544,1.88804065,3325.8,3325.1,38.00742]
[1722408379545,4.89490065,3325.8,3325.1,38.00742]
[1722408379699,3.00692,3325.7,3325.2,2.4551]
[1722408379905,4.89484065,3325.8,3325.2,5.46241]
[1722408380100,3.0068,3325.8,3325.2,5.46241]
[1722408380303,5.47903,3325.7,3325.1,35.0]
[1722408380844,7.36707065,3325.7,3325.1,35.0]
[1722408381499,3.00715,3325.4,3325.1,35.0]
[1722408381716,3.00727,3325.3,3325.1,35.0]
[1722408382962,4.89565782,3325.6,3325.1,35.0]
[1722408383450,2.4721,3325.7,3325.1,35.0]
[1722408383451,3.00707,3325.5,3325.1,35.0]
[1722408383620,3.79697807,3325.8,3325.1,35.0]
[1722408383829,3.00707,3325.5,3325.1,35.0]
[1722408384615,4.89555661,3325.7,3325.1,35.0]
[1722408384963,3.00695,3325.7,3325.2,2.2527]
[1722408385614,3.00698,3325.6,3325.2,2.2527]
[1722408386145,1.88891532,3325.7,3325.2,2.2527]
[1722408386312,4.89577532,3325.8,3325.2,2.2527]
[1722408386512,4.89580532,3325.7,3325.2,2.2527]
[1722408387076,3.00689,3325.7,3325.2,2.2527]
[1722408387227,4.89580532,3325.7,3325.2,2.2527]
[1722408387431,4.89580532,3325.7,3325.3,35.0]
[1722408388030,3.00689,3325.7,3325.3,35.0]
[1722408388544,3.00674,3325.9,3325.3,35.0]
[1722408388764,1.8901405,3325.7,3325.3,35.0]
[1722408390477,1.8901405,3325.9,3325.4,3.00714]
[1722408390778,1.8901405,3325.9,3325.2,5.26003]
[1722408390779,1.8901405,3325.8,3325.2,5.25997]
[1722408390934,1.8901405,3325.7,3325.2,5.25997]
[1722408391562,1.8901405,3325.5,3325.2,2.2527]
[1722408391975,4.11576,3325.9,3325.2,2.2527]
[1722408392278,1.89215774,3325.5,3325.2,5.26001]
[1722408392488,0.71224,3325.8,3325.2,5.26001]
[1722408392783,1.89295501,3325.5,3325.2,5.26001]
[1722408393083,1.89295501,3325.4,3325.2,2.2527]
[1722408393761,1.89295501,3325.3,3325.2,2.2527]
[1722408394066,5.21551752,3325.5,3325.2,2.2527]
[1722408394451,2.20844752,3325.4,3325.2,2.2527]
[1722408394863,5.21551752,3325.5,3325.2,2.2527]
[1722408395072,2.20844752,3325.5,3325.2,2.2527]
[1722408395241,3.00688,3325.7,3325.2,2.2527]
[1722408395442,1.89437296,3325.3,3325.2,2.2527]
[1722408396376,2.21010179,3325.5,3325.2,2.2527]
[1722408396686,2.21010179,3325.4,3325.2,2.2527]
[1722408396896,2.21010179,3325.5,3325.2,2.2527]
[1722408398209,3.00715,3325.4,3325.2,2.2527]
[1722408398391,5.21725179,3325.4,3325.0,2.4521]
[1722408398694,1.8948325,3325.1,3325.0,2.4521]
[1722408401792,1.8948325,3325.2,3325.0,2.4521]
[1722408402005,3.00707,3325.5,3325.0,2.4521]
[1722408402214,1.89483402,3325.1,3325.0,2.4521]
[1722408402627,1.89482742,3325.1,3325.0,2.4521]
[1722408402782,1.89482742,3325.1,3325.0,37.4521]
[1722408403109,1.89482742,3325.1,3325.0,35.0]
[1722408403317,3.00775,3324.8,3324.1,2.404]
[1722408403500,1.89514947,3324.5,3324.1,2.404]
[1722408403693,1.89514947,3324.4,3324.1,2.404]
[1722408403896,3.32000772,3324.7,3324.1,2.404]
[1722408403897,1.89514947,3324.3,3324.2,35.0]
[1722408404498,1.89469985,3324.3,3324.2,35.0]
[1722408405331,1.89411389,3324.4,3324.2,35.0]
[1722408405731,1.89411389,3324.5,3324.2,35.0]
[1722408406428,1.89369891,3324.5,3324.2,38.00824]
[1722408406727,1.89369891,3324.8,3324.6,2.3567]
[1722408407030,1.89369891,3325.0,3324.6,5.36457]
[1722408407396,1.89369891,3324.9,3324.7,35.0]
[1722408407932,1.89369891,3324.8,3324.7,35.0]
[1722408408095,1.89369891,3324.9,3324.7,35.0]
[1722408408487,7.35,3325.1,3324.7,35.0]
[1722408408693,1.89360633,3324.9,3324.7,35.0]
[1722408409032,3.00752,3325.0,3324.7,35.0]
[1722408409033,1.89360633,3324.8,3324.7,35.0]
[1722408409948,1.89360633,3324.9,3324.7,35.0]
[1722408412036,1.89335362,3324.9,3324.7,35.0]
[1722408412419,1.89324487,3324.9,3324.7,35.0]
[1722408413456,1.89324487,3325.3,3324.8,5.36009]
[1722408413757,1.89324487,3325.3,3324.9,3.00755]
[1722408413907,1.89324487,3325.4,3325.0,38.00751]
[1722408414252,1.89324487,3325.3,3325.0,35.0]
[1722408414452,1.89300159,3325.3,3325.0,35.0]
[1722408414957,1.89300159,3325.4,3325.2,3.00733]
[1722408415140,3.00689,3325.7,3325.0,38.00745]
[1722408415339,1.89284792,3325.6,3325.1,2.3116]
[1722408415542,1.89284792,3325.6,3325.2,3.00733]
[1722408415852,1.89284792,3325.8,3325.5,3.00705]
[1722408416058,10.35636,3326.3,3325.7,1.109]
[1722408416059,1.89284792,3325.9,3325.7,1.109]
[1722408416368,1.89284792,3326.2,3325.9,3.00669]
[1722408416529,7.35,3326.3,3325.9,3.00669]
[1722408417279,9.24284792,3326.3,3325.9,3.00669]
[1722408417978,1.89284792,3326.4,3326.0,0.060129]
[1722408418191,1.89284792,3326.6,3326.0,0.060129]
[1722408418371,1.89284792,3326.6,3326.1,35.0]
[1722408418372,3.00616,3326.5,3326.1,35.0]
[1722408418704,4.89741575,3326.5,3326.1,35.0]
[1722408419953,1.89125575,3326.5,3326.2,2.2806]
[1722408420159,1.89125575,3326.8,3326.2,5.34714518]
[1722408420490,9.24125575,3326.9,3326.5,3.00616]
[1722408420657,9.24125575,3326.9,3326.3,3.00633]
[1722408420844,9.24125575,3326.9,3326.3,1.16435487]
[1722408421047,3.00589,3326.8,3326.2,2.34072091]
[1722408421241,4.89657578,3326.8,3326.2,2.34072091]
[1722408421460,4.89657578,3326.8,3326.2,5.34715091]
[1722408421661,4.89659534,3326.8,3326.2,5.34715091]
[1722408421957,3.00589,3326.8,3326.2,5.34715091]
[1722408422595,3.00589,3326.8,3326.2,5.28703]
[1722408422793,3.00589,3326.8,3326.2,2.2806]
[1722408423002,3.00616,3326.5,3326.1,35.0]
[1722408423948,3.00599,3326.7,3326.1,38.00652]
[1722408424348,10.35582,3326.9,3326.1,38.00652]
[1722408424597,10.35582,3326.9,3326.2,3.06654268]
[1722408424806,7.35,3326.9,3326.4,3.00624]
[1722408425098,3.00589,3326.8,3326.3,0.06012055]
[1722408425254,10.35581,3326.9,3326.1,35.0]
[1722408425649,7.35,3326.9,3326.3,3.00634]
[1722408425954,7.35,3326.9,3326.4,3.00625]
[1722408426150,7.35,3326.9,3326.4,5.48475]
[1722408428983,7.35,3326.9,3326.5,3.00613]
[1722408429361,2.20173149,3327.6,3326.6,3.00605]
[1722408429362,9.41014944,3327.5,3326.6,3.00605]
[1722408429563,7.52295102,3327.5,3326.9,3.00579]
[1722408431804,10.52821102,3327.5,3326.9,3.00579]
[1722408432441,3.00535,3327.4,3326.7,3.00591]
[1722408432738,3.00546,3327.3,3326.8,35.0]
[1722408434751,3.17821102,3327.5,3326.8,38.00582]
[1722408434909,0.17295102,3327.5,3327.1,3.00561]
[1722408435097,0.17295102,3327.5,3327.4,3.00534]
[1722408435295,0.17295102,3327.5,3327.2,3.00546]
[1722408435510,0.17295102,3327.5,3327.3,35.540576]
[1722408435748,0.17295102,3327.5,3327.3,38.546006]
[1722408438070,0.17295102,3327.5,3327.4,3.00534]
[1722408438433,0.17295102,3327.5,3327.3,38.545986]
[1722408438434,0.17295102,3327.5,3327.3,38.545996]
[1722408438630,0.17295102,3327.5,3327.3,0.540576]
[1722408438832,0.17295102,3327.5,3327.1,5.40589]
[1722408439141,0.02713235,3327.4,3327.2,35.0]
[1722408439457,0.02713235,3327.4,3327.2,38.0055]
[1722408439770,0.17295102,3327.5,3327.2,38.0055]
[1722408440127,0.17295102,3327.5,3326.7,5.36325]
[1722408440480,3.00536,3327.4,3326.8,3.836325]
[1722408440689,3.00559,3327.2,3326.8,35.0]
[1722408440843,3.00559,3327.2,3326.5,3.00613]
[1722408441034,3.00559,3327.2,3326.5,4.597066]
[1722408441364,0.17295102,3327.5,3326.9,3.00578]
[1722408441574,0.17295102,3327.5,3326.7,3.00598]
[1722408441867,3.03249409,3327.4,3326.8,3.00589]
[1722408442171,3.00535,3327.4,3326.8,3.00589]
[1722408442825,0.17295102,3327.5,3326.6,38.00606]
[1722408442826,3.00544,3327.3,3326.6,38.006]
[1722408443026,3.00544,3327.3,3326.7,3.00592]
[1722408443597,3.00553,3327.2,3326.7,3.00592]
[1722408443799,3.00562,3327.1,3326.6,35.0]
[1722408444573,3.00573,3327.0,3326.4,2.2856]
[1722408444889,3.00573,3327.0,3326.1,5.38298]
[1722408444890,3.00583,3326.9,3326.1,5.38298]
[1722408445061,0.02700703,3326.9,3326.3,3.00628]
[1722408445383,5.44298,3327.1,3326.4,3.00624]
[1722408445588,3.00576,3327.0,3326.2,3.00636]
[1722408445751,3.00576,3327.0,3326.3,3.0]
[1722408445948,0.02680727,3326.9,3326.4,38.00622]
[1722408446396,5.38837,3327.4,3326.5,2.3066]
[1722408446557,0.17295102,3327.5,3326.9,3.00579]
[1722408446765,0.17295102,3327.5,3327.0,3.00568]
[1722408446956,0.17295102,3327.5,3327.0,38.00568]
[1722408447294,0.17295102,3327.5,3327.2,3.00546]
[1722408448004,0.17295102,3327.5,3327.0,38.00567]
[1722408448156,0.17295102,3327.5,3327.0,41.05468288]
[1722408449596,0.17295102,3327.5,3327.2,3.00551]
[1722408451263,0.17295102,3327.5,3327.1,3.00561]
[1722408451661,0.17295102,3327.5,3327.2,35.0]
[1722408452291,0.17295102,3327.5,3327.2,38.00552]
[1722408452703,0.17295102,3327.5,3327.2,38.04901288]
[1722408452847,3.0055,3327.3,3326.6,3.00606]
[1722408453246,3.0055,3327.3,3326.6,38.00606]
[1722408453697,3.0055,3327.3,3326.6,35.0]
[1722408454001,3.0055,3327.3,3326.7,3.04901288]
[1722408454567,3.0055,3327.3,3326.7,6.05498288]
[1722408455655,3.00553,3327.2,3326.6,35.0]
[1722408455896,3.00574,3327.0,3326.6,35.0]
[1722408456209,3.00562,3327.1,3326.6,35.0]
[1722408456958,5.38267,3327.4,3326.6,35.0]
[1722408457582,3.00553,3327.2,3326.6,35.0]
[1722408457883,2.3773,3327.4,3326.7,3.00589]
[1722408458386,3.17821102,3327.5,3326.6,38.04901288]
[1722408458387,0.17295102,3327.5,3326.9,3.00578]
[1722408458725,0.17295102,3327.5,3327.4,3.00534]
[1722408459096,0.17295102,3327.5,3327.4,38.00534]
[1722408459295,0.17295102,3327.5,3327.4,41.05435288]
[1722408464545,0.17295102,3327.5,3327.4,44.05969288]
[1722408467628,0.17295102,3327.5,3327.4,9.05969288]
[1722408467949,0.17295102,3327.5,3327.4,6.01068]
[1722408468152,0.17295102,3327.5,3327.4,41.01068]
[1722408469789,0.17295102,3327.5,3327.4,41.56068]
[1722408470076,0.17295102,3327.5,3327.4,43.94178]
[1722408471183,0.17295102,3327.5,3327.4,43.39178]
[1722408471373,0.17295102,3327.5,3327.4,46.44079288]
[1722408472648,0.17295102,3327.5,3327.4,44.05969288]
[1722408474180,0.17295102,3327.5,3327.4,46.46289288]
[1722408474366,0.17295102,3327.5,3327.4,50.01289288]
[1722408475498,0.17295102,3327.5,3327.4,53.01823288]
[1722408478921,0.17295102,3327.5,3327.4,50.01289288]
[1722408479917,0.17295102,3327.5,3327.4,44.05435288]
[1722408480133,0.17295102,3327.5,3327.4,47.05969288]
[1722408480290,0.17295102,3327.5,3327.4,44.05435288]
[1722408481128,0.20005721,3327.5,3327.4,47.60969288]
[1722408481411,0.17295102,3327.5,3327.4,47.60969288]
[1722408482215,0.17295102,3327.5,3327.4,50.61503288]
[1722408482428,0.17295102,3327.5,3327.4,52.87943288]
[1722408482586,0.00190743,3328.0,3327.9,6.00978]
[1722408482791,0.00190743,3328.0,3327.9,10.160758]
[1722408486123,0.00190743,3328.0,3327.9,45.160758]
[1722408486699,0.00190743,3328.0,3327.9,0.600978]
[1722408487015,0.00190743,3328.0,3327.4,3.00534]
[1722408487195,0.00190743,3328.0,3327.5,38.00525]
[1722408488003,0.00190743,3328.0,3327.6,3.00516]
[1722408488807,0.00190743,3328.0,3327.5,35.0]
[1722408489010,0.00190743,3328.0,3327.5,38.00525]
[1722408489719,0.00190743,3328.0,3327.5,41.05426288]
[1722408490032,0.00190743,3328.0,3327.5,38.04901288]
[1722408490235,0.00190743,3328.0,3327.5,41.05424288]
[1722408490388,3.00671743,3328.0,3327.5,38.04901288]
[1722408492137,0.00190743,3328.0,3327.5,41.05420288]
[1722408492496,3.00671743,3328.0,3327.5,38.04901288]
[1722408492699,3.03207099,3327.9,3327.5,35.0]
[1722408496214,0.02716099,3327.9,3327.3,3.00541]
[1722408496941,0.02716099,3327.9,3327.1,3.00558]
[1722408496942,3.03206099,3327.9,3327.1,3.00558]
[1722408497244,3.00498,3327.8,3327.2,3.0]
[1722408497605,0.02698876,3327.7,3327.2,3.0]
[1722408498005,0.02698876,3327.7,3327.2,6.00552]
[1722408498547,4.89421043,3327.9,3327.2,6.00552]
[1722408498741,0.02698876,3327.8,3327.2,6.00552]
[1722408498926,0.02698876,3327.8,3327.3,0.6906656]
[1722408500666,3.03199876,3327.8,3327.3,0.6906656]
[1722408500866,4.92160318,3327.8,3327.3,0.6906656]
[1722408502177,4.92260365,3327.8,3327.3,0.6906656]
[1722408502680,4.92313707,3327.8,3327.3,0.6906656]
[1722408503032,1.91812707,3327.8,3327.3,3.6960256]
[1722408503722,1.89113831,3327.7,3327.3,3.6960256]
[1722408503963,0.02678131,3327.6,3327.3,3.6960256]
[1722408504167,1.89170885,3327.7,3327.3,3.6960256]
[1722408504361,0.02678131,3327.5,3327.3,3.6960256]
[1722408504524,1.89170885,3327.7,3327.4,0.66960256]
[1722408504940,0.02678131,3327.6,3327.4,0.66960256]
[1722408505581,1.8921591,3327.7,3327.4,0.66960256]
[1722408505761,0.02678131,3327.5,3327.3,3.00536]
[1722408506078,1.8921591,3327.7,3327.3,3.00536]
[1722408506231,3.00489,3327.9,3327.2,3.0]
[1722408506232,0.02678131,3327.4,3327.2,3.0]
[1722408506429,3.00499,3327.8,3327.2,6.00552]
[1722408506647,0.02678131,3327.3,3327.2,6.906633]
[1722408506852,3.00499,3327.8,3327.2,6.906633]
[1722408507393,0.02678131,3327.7,3327.2,6.906633]
[1722408508400,0.02678131,3327.7,3327.3,3.00543]
[1722408508401,1.89194444,3327.6,3327.3,3.00543]
[1722408508594,1.91867095,3327.6,3327.3,3.00543]
[1722408508797,1.91867095,3327.6,3327.4,0.6906543]
[1722408508999,0.02672651,3327.6,3327.4,0.6906543]
[1722408509382,3.00678743,3328.0,3327.4,0.6906543]
[1722408509718,0.02672651,3327.5,3327.3,3.00543]
[1722408509882,1.89182973,3327.8,3327.3,3.00543]
[1722408510222,1.89184878,3327.8,3327.6,3.00514]
[1722408510534,0.02672651,3327.7,3327.4,3.00528]
[1722408510678,0.02672651,3327.7,3327.5,3.00525]
[1722408510882,1.89181099,3327.9,3327.5,3.00525]
[1722408511132,0.02674218,3327.6,3327.5,3.00525]
[1722408511310,1.89181099,3327.9,3327.5,3.00525]
[1722408511528,0.02674218,3327.6,3327.5,3.00525]
[1722408511829,1.89181099,3327.9,3327.6,3.00514]
[1722408512286,0.00190743,3328.0,3327.8,3.00498]
[1722408512622,1.89357281,3328.0,3327.8,3.00498]
[1722408512783,0.00190743,3328.0,3327.8,3.00498]
[1722408512988,1.89361747,3328.0,3327.8,3.00498]
[1722408513466,1.89361747,3328.0,3327.6,3.0051]
[1722408513467,0.00190743,3328.0,3327.6,3.0051]
[1722408513734,1.89354535,3328.0,3327.6,0.79404619]
[1722408513884,1.89354535,3328.0,3327.6,3.00516]
[1722408515430,1.89353689,3328.0,3327.6,3.00516]
[1722408515935,0.00190743,3328.0,3327.6,3.00516]
[1722408517437,1.89348937,3328.0,3327.6,3.00516]
[1722408518657,2.4862,3327.9,3327.2,6.00549]
[1722408518834,5.49111,3327.9,3327.3,3.00543]
[1722408518983,1.89166513,3327.8,3327.3,3.00543]
[1722408520844,5.49111,3327.9,3327.3,3.00543]
[1722408521144,5.49111,3327.9,3327.3,3.6801209]
[1722408521301,2.4862,3327.9,3327.3,0.6746909]
[1722408521507,3.00519,3327.6,3326.9,3.30705]
[1722408521707,3.00519,3327.6,3327.0,3.3013]
[1722408522047,3.00519,3327.6,3327.1,0.630705]
[1722408523149,3.00519,3327.6,3327.2,35.0]
[1722408524471,4.89726943,3327.6,3327.2,35.0]
[1722408524823,0.02680089,3327.5,3327.2,35.0]
[1722408525464,0.02680089,3327.5,3327.2,35.3013]
[1722408525671,0.02680089,3327.5,3327.2,38.35031288]
[1722408526360,0.02680089,3327.5,3327.2,35.3013]
[1722408528051,0.02680089,3327.5,3326.0,3.00652]
[1722408528052,1.108,3327.3,3326.1,5.41387]
[1722408528263,1.89248005,3326.8,3326.4,3.00624]
[1722408528577,1.89248005,3327.0,3326.6,3.00606]
[1722408528779,0.02659339,3326.7,3326.5,35.0]
[1722408528990,1.89248005,3327.0,3326.5,6.05517288]
[1722408529168,1.89248005,3327.0,3326.5,3.00616]
[1722408529335,0.02659339,3326.6,3326.5,3.00616]
[1722408529870,1.89248005,3326.9,3326.5,38.00616]
[1722408530271,1.91907344,3326.8,3326.5,35.0]
[1722408532088,0.02659339,3326.8,3326.5,35.0]
[1722408532244,0.02659339,3326.8,3326.6,3.04901288]
[1722408532796,1.89413714,3327.0,3326.8,3.00589]
[1722408533098,1.89413714,3327.1,3326.8,3.00589]
[1722408533452,1.89413714,3327.1,3326.6,5.3754]
[1722408533734,1.89413714,3327.0,3326.7,3.00597]
[1722408533895,1.89413714,3327.1,3326.8,0.537537]
[1722408534680,1.89413714,3327.0,3326.9,35.0]
[1722408535654,4.11332,3327.5,3326.9,35.0]
[1722408535855,1.89276496,3327.1,3326.9,35.0]
[1722408536055,1.89276496,3327.2,3327.0,3.04901288]
[1722408536256,1.89276496,3327.1,3326.9,35.0]
[1722408536781,1.89276496,3327.2,3326.9,35.0]
[1722408537097,1.89276496,3327.1,3326.9,35.0]
[1722408538591,4.89836496,3327.2,3326.9,35.0]
[1722408539152,4.89753853,3327.2,3326.9,35.0]
[1722408539750,1.89193853,3327.1,3326.9,35.0]
[1722408540694,4.89753853,3327.2,3326.9,35.0]
[1722408541372,4.89753853,3327.2,3326.6,5.37545]
[1722408541573,4.89732223,3327.2,3326.6,6.324416]
[1722408542001,4.89726577,3327.2,3326.7,35.0]
[1722408543680,4.89710364,3327.2,3326.7,35.0]
[1722408545053,4.89702975,3327.2,3326.7,35.0]
[1722408545258,1.89142975,3327.2,3326.7,35.0]
[1722408545500,1.89142975,3327.4,3326.8,3.04901288]
[1722408545881,1.89142975,3327.3,3326.6,2.3694]
[1722408546102,1.89142975,3327.3,3326.7,35.0]
[1722408546601,1.89142975,3327.3,3326.8,3.00588]
[1722408547001,4.89676975,3327.4,3326.8,3.00588]
[1722408547202,1.89142975,3327.6,3327.2,3.00552]
[1722408547399,1.89142975,3327.7,3327.2,3.00552]
[1722408547603,12.24642975,3327.8,3327.2,3.00552]
[1722408547803,1.89142975,3327.7,3327.2,3.00552]
[1722408548005,12.24642975,3327.8,3327.3,3.00543]
[1722408548162,10.355,3327.8,3327.3,38.00543]
[1722408548368,1.89113287,3327.7,3327.3,38.00543]
[1722408549838,1.89113287,3327.7,3327.3,35.0]
[1722408550740,1.89113287,3327.7,3327.3,38.0054]
[1722408550891,1.89113287,3327.7,3327.3,35.0]
[1722408551086,1.89113287,3327.7,3327.1,5.26204]
[1722408551336,4.89621287,3327.7,3326.9,3.00577]
[1722408551636,4.11308,3327.7,3327.1,3.00555]
[1722408551812,6.00443816,3327.7,3327.1,3.00555]
[1722408552193,6.0044385,3327.7,3327.1,3.00555]
[1722408552398,3.00517,3327.6,3326.9,3.00577]
[1722408552595,3.00517,3327.6,3327.0,38.00569]
[1722408553092,4.8965285,3327.6,3327.0,38.00569]
[1722408553518,1.8913585,3327.6,3327.0,35.0]
[1722408553727,4.2840585,3327.6,3327.0,35.0]
[1722408554124,1.108,3327.5,3327.0,35.0]
[1722408554309,1.8913585,3327.4,3326.7,3.00596]
[1722408554648,1.8913585,3327.4,3326.4,2.3212]
[1722408554649,1.108,3327.1,3326.4,5.32744]
[1722408554800,2.9993585,3327.1,3326.8,35.0]
[1722408554996,1.108,3327.1,3326.8,35.0]
[1722408555235,2.265,3327.1,3326.4,3.00624]
[1722408555444,3.00578,3327.0,3326.4,0.600624]
[1722408555732,3.00592,3326.8,3326.1,0.3013]
[1722408555932,3.00604,3326.7,3326.1,3.0]
[1722408556093,3.00604,3326.7,3326.1,6.00651]
[1722408556334,3.00604,3326.7,3326.2,35.0]
[1722408558481,4.89766114,3326.9,3326.2,35.0]
[1722408558778,4.89766114,3326.9,3326.2,38.04901288]
[1722408559099,4.89766114,3326.9,3326.2,35.0]
[1722408559100,3.00607,3326.6,3326.2,35.0]
[1722408559230,4.89787114,3326.6,3326.2,35.0]
[1722408559571,3.00607,3326.6,3326.2,35.0]
[1722408560283,3.00616,3326.5,3326.2,35.0]
[1722408560426,4.89816114,3326.3,3325.5,3.00705]
[1722408560631,4.89816114,3326.3,3325.4,3.00715]
[1722408560632,3.00658,3326.1,3325.4,3.00715]
[1722408561074,3.00658,3326.1,3325.6,35.0]
[1722408561853,3.00688,3325.8,3325.6,35.0]
[1722408562053,3.00688,3325.7,3325.6,35.0]
[1722408562252,1.89223235,3325.8,3325.6,35.0]
[1722408562454,5.37739,3325.9,3325.6,35.0]
[1722408562852,5.37739,3325.9,3325.2,3.00728]
[1722408563086,5.37739,3325.9,3325.2,3.71955]
[1722408563293,3.00689,3325.7,3325.3,35.0]
[1722408564062,4.11479,3325.8,3325.3,35.0]
[1722408564353,3.00703,3325.6,3325.3,35.0]
[1722408564553,4.11503,3325.6,3325.3,35.0]
[1722408565254,3.00707,3325.5,3325.3,35.0]
[1722408566055,3.00715,3325.4,3325.3,35.0]
[1722408566504,4.11515,3325.4,3325.3,35.0]
[1722408566954,4.11515,3325.4,3324.8,3.0]
[1722408567155,4.11515,3325.4,3324.8,0.600781]
[1722408567368,3.00715,3325.4,3324.8,0.600781]
[1722408567607,3.00715,3325.4,3324.9,35.0]
[1722408568698,2.2581,3325.3,3324.5,6.61556]
[1722408568905,3.00735,3325.2,3324.5,6.61556]
[1722408569061,3.00735,3325.2,3324.6,0.661556]
[1722408569397,5.3977,3325.6,3324.8,3.00768]
[1722408569709,3.00681,3325.8,3324.7,1.108]
[1722408569912,3.00681,3325.8,3325.1,3.00742]
[1722408570702,3.00652,3326.1,3325.3,4.11524]
[1722408570921,3.0064,3326.3,3325.6,3.00691]
[1722408571448,3.00654,3326.1,3325.4,3.00709]
[1722408571576,3.00654,3326.1,3325.5,0.712231]
[1722408572190,3.00654,3326.1,3325.3,4.11522]
[1722408572191,4.11446,3326.2,3325.3,4.11522]
[1722408572394,3.00672,3325.9,3325.3,3.00722]
[1722408572618,3.0068,3325.8,3325.2,2.6583]
[1722408572783,3.0068,3325.8,3325.2,3.0073]
[1722408573128,3.00704,3325.6,3324.9,2.416]
[1722408573310,1.108,3325.6,3324.6,2.416]
[1722408573511,3.00715,3325.4,3324.6,2.416]
[1722408573673,3.00715,3325.4,3324.6,5.416]
[1722408573878,3.00715,3325.4,3324.8,3.00769]
[1722408574728,7.12202,3325.6,3324.8,3.00769]
[1722408574896,3.00707,3325.5,3324.8,3.00769]
[1722408576238,0.53238,3325.8,3325.1,3.00738]
[1722408576440,12.6737,3325.9,3325.3,3.00723]
[1722408576721,5.3237,3325.9,3325.3,3.00723]
[1722408578086,3.00653,3326.1,3325.4,3.00714]
[1722408578616,3.0067,3325.9,3325.4,3.00714]
[1722408578959,3.00658,3326.1,3325.4,3.00714]
[1722408579836,3.00658,3326.1,3325.5,3.00705]
[1722408580452,21.9497,3326.2,3325.6,3.00695]
[1722408580747,21.9497,3326.2,3325.7,3.00688]
[1722408581500,2.4097,3326.2,3325.7,3.00688]
[1722408581949,3.0064,3326.3,3325.7,3.00688]
[1722408584009,3.00643,3326.2,3325.5,3.007]
[1722408584211,3.00643,3326.2,3325.6,3.00695]
[1722408584434,4.287727,3326.4,3325.7,3.00688]
[1722408584754,3.00634,3326.3,3325.6,5.38231]
[1722408585051,3.00634,3326.3,3325.7,3.00688]
[1722408586162,1.281477,3326.4,3325.8,3.00678]
[1722408586485,5.46477,3326.5,3325.9,3.00666]
[1722408586631,10.35607,3326.6,3326.0,3.00658]
[1722408586832,3.00607,3326.6,3326.0,3.00658]
[1722408587763,3.00617,3326.5,3325.9,3.00666]
[1722408587967,3.00607,3326.6,3326.0,3.00661]
[1722408588276,3.00607,3326.6,3326.0,3.60795]
[1722408588448,3.00607,3326.6,3326.0,3.00661]
[1722408589360,5.38362,3326.8,3326.1,3.0065]
[1722408589560,3.00592,3326.8,3326.1,2.3199]
[1722408589734,22.54581,3326.9,3326.3,3.00633]
[1722408589940,7.35,3326.9,3326.4,3.00623]
[1722408590773,3.00589,3326.8,3326.2,3.00637]
[1722408591481,3.00608,3326.6,3325.1,0.3013]
[1722408591652,3.00658,3326.1,3325.5,3.00705]
[1722408591981,3.00635,3326.3,3325.7,3.00687]
[1722408592475,3.00635,3326.3,3325.6,3.00697]
[1722408592973,3.00645,3326.2,3325.6,3.00697]
[1722408596833,3.00653,3326.1,3325.6,3.00697]
[1722408597034,3.00645,3326.2,3325.5,3.00705]
[1722408597261,3.00645,3326.2,3325.6,3.00695]
[1722408600067,3.00667,3326.0,3325.4,3.00714]
[1722408600271,3.0067,3325.9,3325.3,0.3013]
[1722408600496,3.0067,3325.9,3325.3,3.30846]
[1722408600713,3.0067,3325.9,3325.3,3.940032]
[1722408600885,3.00659,3326.1,3325.3,3.940032]
[1722408601102,4.8970363,3326.2,3325.4,3.00715]
[1722408601314,4.8970363,3326.2,3325.3,0.3013]
[1722408601315,3.5787,3326.1,3325.3,3.30851]
[1722408601569,3.0067,3325.9,3325.3,3.30851]
[1722408601721,8.4758663,3326.1,3325.4,3.00715]
[1722408602027,3.5787,3326.1,3325.5,3.007]
[1722408602227,6.58523,3326.1,3325.5,3.007]
[1722408602441,8.4758063,3326.1,3325.5,3.007]
[1722408602922,6.58522,3326.1,3325.5,3.007]
[1722408603288,3.00671,3325.9,3325.3,3.00717]
[1722408604330,3.00671,3325.9,3325.3,3.749656]
[1722408606218,8.47669633,3326.1,3325.3,3.749656]
[1722408606525,8.47669633,3326.1,3325.5,3.00704]
[1722408606684,1.89276852,3326.0,3325.5,3.00704]
[1722408606884,1.89276852,3326.0,3325.5,3.6827096]
[1722408607230,1.89272439,3326.1,3325.6,3.00697]
[1722408608434,1.89272439,3326.2,3325.7,5.45743]
[1722408608598,1.89272439,3326.2,3325.8,3.00678]
[1722408609015,4.89916439,3326.2,3325.6,3.00697]
[1722408609246,1.89272439,3326.1,3325.6,3.00697]
[1722408609857,1.89272439,3326.2,3325.7,3.00688]
[1722408610153,1.8926699,3326.2,3325.7,3.00688]
[1722408610718,9.55811489,3326.5,3326.1,1.109]
[1722408610719,9.2426699,3326.5,3326.1,1.109]
[1722408611045,1.8926699,3327.0,3326.4,3.00623]
[1722408611215,1.8926699,3326.9,3326.4,3.00623]
[1722408611540,4.8984699,3326.9,3326.3,3.00634]
[1722408611722,4.8984699,3326.9,3326.4,0.538674]
[1722408611930,1.8926699,3326.8,3326.4,0.538674]
[1722408612454,1.8926699,3326.9,3326.4,3.544914]
[1722408612626,1.8926699,3326.9,3326.4,3.00624]
[1722408612857,4.8984699,3326.9,3326.2,5.38676]
[1722408613033,1.8926699,3326.8,3326.2,5.38676]
[1722408613229,1.8926699,3326.8,3326.2,6.226087]
[1722408613429,3.0058,3326.9,3326.2,6.226087]
[1722408613610,1.89194506,3326.8,3326.4,3.00624]